bitfinex-derivatives/quotes_SOLF0:USTF0_20241216
["timestamp","ask_amount","ask_price","bid_price","bid_amount"]
[1734374098560,2.2854,218.73,218.7,2.64]
[1734374099159,2.2854,218.73,218.72,5.3828138]
[1734374101558,2.2856,218.71,218.69,2.64]
[1734374101757,3.41381,218.81,218.69,2.64]
[1734374102458,0.77381,218.81,218.72,21.18679521]
[1734374102664,0.77381,218.81,218.72,6.46164341]
[1734374103958,0.77381,218.81,218.76,21.18679521]
[1734374104162,0.77381,218.81,218.76,23.82679521]
[1734374104355,0.77381,218.81,218.7,5.45415296]
[1734374104661,0.77381,218.81,218.6,21.18679521]
[1734374104662,21.18679521,218.79,218.6,21.18679521]
[1734374104864,2.2853,218.74,218.6,26.11349521]
[1734374105063,4.73,218.73,218.58,1.5654]
[1734374105261,4.73,218.73,218.59,2.64]
[1734374106068,2.2863,218.64,218.63,5.52034452]
[1734374106264,2.2863,218.64,218.59,2.64]
[1734374106560,2.2865,218.62,218.57,4.927]
[1734374106764,23.82679521,218.7,218.57,2.64]
[1734374107361,23.82679521,218.7,218.58,2.2869]
[1734374107562,23.82679521,218.7,218.61,5.62025493]
[1734374108964,2.2863,218.65,218.61,5.62025493]
[1734374109365,23.82679521,218.7,218.61,5.62025493]
[1734374109668,2.2863,218.64,218.61,5.62025493]
[1734374110062,258.21437313,218.73,218.61,5.62025493]
[1734374110364,258.21437313,218.73,218.65,2.2862]
[1734374110562,258.21437313,218.73,218.61,5.62025493]
[1734374111166,13.25194844,218.64,218.43,2.64]
[1734374111464,4.2476,218.63,218.48,13.25194844]
[1734374111668,5.7723,218.63,218.48,13.25194844]
[1734374111968,5.7723,218.63,218.47,1.5812]
[1734374111969,2.2871,218.57,218.51,2.2876]
[1734374112668,2.2872,218.56,218.51,2.2876]
[1734374113663,5.7723,218.63,218.47,1.5812]
[1734374113867,5.7723,218.63,218.49,2.2878]
[1734374114266,5.7723,218.63,218.47,1.5812]
[1734374114569,5.7723,218.63,218.52,5.43063715]
[1734374115561,2.2873,218.55,218.52,5.43063715]
[1734374117865,2.2874,218.54,218.48,2.2879]
[1734374118070,2.64,218.58,218.48,2.2879]
[1734374119375,21.22601031,218.61,218.49,2.2879]
[1734374119376,2.2873,218.55,218.49,2.2879]
[1734374119575,2.64,218.57,218.47,1.5812]
[1734374119876,2.64,218.58,218.47,1.5812]
[1734374120175,2.2875,218.53,218.5,5.47363032]
[1734374120673,2.2874,218.54,218.5,5.47363032]
[1734374121175,2.2874,218.54,218.43,1.5553]
[1734374121176,21.22601031,218.57,218.39,21.22601031]
[1734374121376,21.22601031,218.57,218.4,7.6224423]
[1734374121567,21.22601031,218.57,218.41,4.9824423]
[1734374121875,21.22601031,218.57,218.4,2.64]
[1734374121876,2.2879,218.5,218.44,2.2884]
[1734374122170,23.86601031,218.53,218.37,3.2155]
[1734374122374,4.1956,218.52,218.45,5.53807236]
[1734374123075,4.1956,218.52,218.42,2.2886]
[1734374123374,4.1956,218.52,218.37,2.64]
[1734374123572,4.1956,218.52,218.37,4.9291]
[1734374123573,2.2886,218.43,218.37,4.9291]
[1734374123774,2.2886,218.43,218.37,2.64]
[1734374123969,3.0902,218.51,218.39,5.4424652]
[1734374124171,3.0902,218.51,218.44,2.2883]
[1734374125475,2.2879,218.49,218.44,2.2883]
[1734374125873,3.0902,218.51,218.45,2.2883]
[1734374126066,2.2878,218.5,218.45,2.2883]
[1734374126268,2.2878,218.5,218.42,2.64]
[1734374126472,1.5556,218.52,218.45,2.2883]
[1734374126874,2.2878,218.51,218.45,2.2883]
[1734374127478,2.2878,218.51,218.46,2.2882]
[1734374127979,2.2878,218.5,218.45,2.2883]
[1734374128570,2.2878,218.5,218.39,26.66847551]
[1734374128571,3.8432,218.52,218.47,2.2881]
[1734374129074,2.64,218.55,218.43,21.22601031]
[1734374129270,2.2875,218.53,218.48,2.2879]
[1734374129773,2.2875,218.53,218.43,21.22601031]
[1734374129774,2.2874,218.54,218.49,2.2879]
[1734374130175,2.64,218.58,218.46,2.64]
[1734374130371,2.2873,218.55,218.5,2.2878]
[1734374131474,2.2872,218.56,218.52,2.2875]
[1734374131675,1.558,218.6,218.46,2.64]
[1734374131871,1.558,218.6,218.47,1.5442]
[1734374132076,2.287,218.58,218.48,13.26657346]
[1734374132680,2.287,218.58,218.51,2.2877]
[1734374132879,2.287,218.58,218.51,2.64]
[1734374133176,2.64,218.65,218.51,15.90657346]
[1734374133477,13.26657346,218.65,218.51,15.90657346]
[1734374134074,2.2867,218.61,218.5,5.53329772]
[1734374134376,13.26657346,218.53,218.36,16.63484783]
[1734374134575,2.2882,218.46,218.36,13.26657346]
[1734374134970,2.2882,218.46,218.4,2.2888]
[1734374135383,13.26657346,218.46,218.37,2.2891]
[1734374135569,13.26657346,218.46,218.33,2.64]
[1734374135777,2.64,218.5,218.33,2.64]
[1734374135972,2.64,218.49,218.38,5.35755685]
[1734374136178,13.26657346,218.48,218.38,5.35755685]
[1734374136778,15.90657346,218.48,218.38,5.35755685]
[1734374136978,2.2883,218.45,218.38,7.64655685]
[1734374137476,2.64,218.48,218.38,5.35755685]
[1734374137975,13.26657346,218.49,218.38,7.99755685]
[1734374138181,2.2882,218.47,218.41,2.2887]
[1734374138482,2.2882,218.47,218.38,7.99755685]
[1734374139083,2.2882,218.47,218.41,2.2887]
[1734374139783,25.78680792,218.52,218.38,7.99755685]
[1734374139784,28.42680792,218.52,218.38,7.99755685]
[1734374140173,2.288,218.49,218.43,2.2885]
[1734374140482,4.5381,218.52,218.43,2.64]
[1734374141184,4.5381,218.52,218.38,26.60626477]
[1734374141378,25.78680792,218.52,218.39,4.97620006]
[1734374141580,2.2883,218.46,218.4,7.26500006]
[1734374141777,2.2883,218.46,218.4,2.2888]
[1734374142274,21.24870792,218.48,218.38,5.35755685]
[1734374143084,2.2887,218.41,218.38,5.35755685]
[1734374143282,21.24870792,218.48,218.33,2.64]
[1734374143283,2.64,218.45,218.33,2.64]
[1734374143578,2.64,218.45,218.31,3.0647]
[1734374143579,2.2888,218.4,218.35,2.2893]
[1734374143982,2.2887,218.41,218.35,2.2893]
[1734374144182,256.12437313,218.5,218.36,4.98134373]
[1734374144478,256.12437313,218.5,218.37,4.98134373]
[1734374144681,2.2881,218.47,218.39,2.2888]
[1734374144880,256.12437313,218.5,218.39,2.2888]
[1734374145082,256.12437313,218.5,218.37,8.15740123]
[1734374145285,256.12437313,218.5,218.38,4.9802439]
[1734374145584,256.12437313,218.5,218.41,2.2887]
[1734374145780,2.64,218.5,218.41,2.2887]
[1734374146286,2.2883,218.45,218.41,2.2887]
[1734374146880,2.64,218.5,218.41,2.2887]
[1734374147187,2.2882,218.46,218.41,2.2887]
[1734374148382,2.64,218.5,218.41,2.2887]
[1734374148686,2.64,218.5,218.39,2.2889]
[1734374148885,2.64,218.5,218.37,2.64]
[1734374149085,23.88870792,218.5,218.38,4.99056219]
[1734374149283,23.88870792,218.5,218.39,5.5750255]
[1734374149284,253.48437313,218.49,218.39,5.5750255]
[1734374149699,2.2887,218.42,218.39,5.5750255]
[1734374150985,2.2883,218.45,218.41,2.2887]
[1734374151385,2.2883,218.45,218.42,4.99625812]
[1734374151589,2.2883,218.45,218.41,2.2887]
[1734374152583,2.64,218.5,218.4,2.2888]
[1734374152985,2.64,218.5,218.41,4.99762545]
[1734374153193,2.64,218.5,218.39,5.5750255]
[1734374153387,2.64,218.5,218.4,4.99780961]
[1734374153584,2.2886,218.43,218.39,5.5750255]
[1734374153785,2.2886,218.43,218.4,4.99940932]
[1734374154083,2.64,218.5,218.41,4.99936326]
[1734374154284,2.2884,218.45,218.4,2.2888]
[1734374154586,2.2884,218.45,218.41,5.00124452]
[1734374154896,2.2884,218.45,218.4,2.2888]
[1734374154897,2.2884,218.44,218.4,2.2888]
[1734374155089,2.2884,218.44,218.41,5.00124876]
[1734374155284,2.2884,218.44,218.4,2.2888]
[1734374155487,2.2884,218.44,218.41,5.00136093]
[1734374155695,2.2884,218.44,218.4,2.2888]
[1734374155894,2.2884,218.44,218.41,5.0052062]
[1734374156093,2.2884,218.44,218.4,2.2888]
[1734374156591,2.64,218.49,218.39,5.5750255]
[1734374156797,21.24870792,218.47,218.34,2.64]
[1734374156992,21.24870792,218.47,218.35,5.00738494]
[1734374157191,2.2887,218.41,218.38,5.5129604]
[1734374157387,2.2887,218.41,218.38,7.8019604]
[1734374157799,2.2887,218.41,218.38,5.5129604]
[1734374158593,13.28584662,218.46,218.32,13.28584662]
[1734374158794,2.2889,218.4,218.35,2.2893]
[1734374158989,253.48437313,218.5,218.36,5.00820094]
[1734374158990,13.28584662,218.42,218.36,5.00820094]
[1734374159297,4.7454,218.41,218.27,15.92584662]
[1734374159498,2.2891,218.37,218.34,5.48708344]
[1734374160293,1.5584,218.41,218.33,13.28584662]
[1734374160491,2.64,218.44,218.38,2.2889]
[1734374161298,2.2886,218.43,218.38,2.2889]
[1734374161493,2.2886,218.43,218.33,13.28584662]
[1734374161700,2.2886,218.43,218.39,2.2889]
[1734374162193,2.2883,218.46,218.37,2.64]
[1734374162404,2.2883,218.46,218.39,13.28584662]
[1734374162799,13.28584662,218.51,218.37,2.64]
[1734374162996,260.86417313,218.52,218.37,2.64]
[1734374162997,13.28584662,218.48,218.39,2.2888]
[1734374163298,13.28584662,218.48,218.37,2.64]
[1734374163505,13.28584662,218.48,218.39,2.2888]
[1734374163898,2.2883,218.45,218.4,2.2888]
[1734374164106,13.28584662,218.48,218.4,2.2888]
[1734374165202,13.28584662,218.48,218.37,15.92584662]
[1734374165400,2.64,218.5,218.37,15.92584662]
[1734374165603,4.7398,218.52,218.4,13.28584662]
[1734374165904,1.6037,218.52,218.43,13.28584662]
[1734374166105,14.59112662,218.56,218.44,2.64]
[1734374166406,14.59112662,218.56,218.43,13.28584662]
[1734374166407,1.30528,218.56,218.45,2.64]
[1734374166610,2.2875,218.53,218.49,2.2879]
[1734374166909,2.2875,218.53,218.45,2.64]
[1734374167109,253.48437313,218.54,218.46,3.39760276]
[1734374167405,253.48437313,218.54,218.45,2.64]
[1734374167708,2.2878,218.5,218.45,2.64]
[1734374168307,2.2878,218.5,218.39,3.1616]
[1734374168308,2.2876,218.52,218.47,2.2881]
[1734374168506,253.48437313,218.54,218.43,13.28584662]
[1734374169309,253.48437313,218.54,218.44,3.39717478]
[1734374169610,253.48437313,218.5,218.46,2.2881]
[1734374170306,253.48437313,218.5,218.43,13.28584662]
[1734374170906,253.48437313,218.5,218.47,2.288]
[1734374171107,253.48437313,218.5,218.43,13.28584662]
[1734374171302,253.48437313,218.5,218.44,4.94578879]
[1734374171507,253.48437313,218.5,218.43,13.28584662]
[1734374171712,253.48437313,218.5,218.44,4.94548562]
[1734374171903,253.48437313,218.5,218.48,5.60210338]
[1734374172102,253.48437313,218.5,218.48,0.84589987]
[1734374172809,41.21597878,218.49,218.46,2.2881]
[1734374173314,41.21597878,218.49,218.47,2.288]
[1734374173512,41.21597878,218.49,218.43,13.28584662]
[1734374173709,41.21597878,218.49,218.44,4.94501542]
[1734374173909,41.21597878,218.49,218.45,4.94501542]
[1734374174106,41.21597878,218.49,218.46,4.94501542]
[1734374174307,41.21597878,218.49,218.48,2.288]
[1734374174607,41.21597878,218.49,218.43,13.28584662]
[1734374174810,41.21597878,218.49,218.48,5.38128454]
[1734374175004,41.21597878,218.49,218.48,7.66928454]
[1734374175611,41.21597878,218.49,218.48,5.38128454]
[1734374176608,41.21597878,218.49,218.48,0.86568619]
[1734374177907,41.21597878,218.49,218.42,2.64]
[1734374178105,41.21597878,218.49,218.43,7.58703357]
[1734374178511,41.21597878,218.49,218.44,4.94703357]
[1734374178810,253.48437313,218.51,218.46,5.54719511]
[1734374178811,2.2878,218.5,218.46,5.54719511]
[1734374179210,266.77021975,218.51,218.39,2.64]
[1734374179417,266.77021975,218.51,218.4,8.35023971]
[1734374179613,2.288,218.48,218.42,2.2886]
[1734374179810,2.288,218.48,218.43,4.95025451]
[1734374180011,13.28584662,218.51,218.39,2.64]
[1734374180309,13.28584662,218.48,218.4,4.95058811]
[1734374180619,13.28584662,218.48,218.36,2.64]
[1734374180813,13.28584662,218.48,218.37,10.99165279]
[1734374181013,2.2883,218.45,218.4,5.55282038]
[1734374181215,1.5365,218.47,218.37,2.64]
[1734374181613,2.2885,218.44,218.38,7.24021634]
[1734374181812,13.28584662,218.42,218.29,2.64]
[1734374182016,1.634,218.41,218.3,3.40101495]
[1734374182320,1.634,218.41,218.28,13.28584662]
[1734374182321,1.634,218.41,218.31,3.40101495]
[1734374182520,3.1508,218.41,218.29,2.64]
[1734374183020,3.1508,218.41,218.28,15.92584662]
[1734374183517,3.1508,218.41,218.31,5.39456088]
[1734374183713,2.289,218.38,218.31,5.39456088]
[1734374183918,3.1508,218.41,218.31,18.6804075]
[1734374184115,1.634,218.41,218.37,2.2891]
[1734374184720,1.634,218.41,218.31,5.39456088]
[1734374185323,1.634,218.41,218.31,18.6804075]
[1734374185514,1.634,218.41,218.31,21.3204075]
[1734374185714,1.634,218.41,218.32,3.39870002]
[1734374186014,1.634,218.41,218.36,2.2892]
[1734374186212,1.634,218.41,218.31,5.39456088]
[1734374186415,4.274,218.41,218.34,2.2894]
[1734374186619,4.274,218.41,218.31,18.6804075]
[1734374186815,15.92584662,218.45,218.32,3.3984763]
[1734374187121,1.5168,218.46,218.37,13.28584662]
[1734374187317,4.1568,218.46,218.37,13.28584662]
[1734374187617,6.445,218.46,218.4,2.2888]
[1734374187823,4.1568,218.46,218.34,2.64]
[1734374188017,1.5168,218.46,218.35,3.3976568]
[1734374188323,2.64,218.45,218.34,2.64]
[1734374188517,2.64,218.45,218.37,2.289]
[1734374189526,2.2884,218.44,218.37,2.289]
[1734374189725,2.2884,218.44,218.35,13.28584662]
[1734374189922,2.64,218.45,218.36,3.3976896]
[1734374190120,2.2882,218.46,218.35,13.28584662]
[1734374190317,2.2882,218.46,218.36,3.39789259]
[1734374190615,2.2882,218.46,218.35,13.28584662]
[1734374190816,2.2882,218.46,218.36,3.39766698]
[1734374191034,2.2882,218.46,218.39,2.2888]
[1734374191325,2.64,218.49,218.35,13.28584662]
[1734374191520,2.64,218.49,218.38,13.28584662]
[1734374191724,255.04467313,218.5,218.41,13.28584662]
[1734374193023,1.5603,218.5,218.41,13.28584662]
[1734374193322,1.5603,218.5,218.41,15.57444662]
[1734374193323,2.288,218.48,218.41,15.57444662]
[1734374193530,1.5603,218.5,218.41,15.57444662]
[1734374194224,1.5603,218.5,218.41,13.28584662]
[1734374194427,2.2882,218.46,218.4,2.64]
[1734374194622,14.84614662,218.5,218.42,5.4668921]
[1734374194825,268.33051975,218.5,218.36,2.64]
[1734374195131,2.2887,218.42,218.37,4.91817378]
[1734374195426,2.2887,218.42,218.35,18.21514662]
[1734374195630,2.2887,218.41,218.35,18.21514662]
[1734374195824,15.92584662,218.47,218.35,15.92584662]
[1734374196022,1.5086,218.46,218.35,2.64]
[1734374196530,1.5086,218.46,218.34,2.2894]
[1734374196531,253.48437313,218.45,218.34,2.2894]
[1734374196826,253.48437313,218.45,218.32,18.21544662]
[1734374197024,2.289,218.39,218.32,18.21544662]
[1734374197221,253.48437313,218.45,218.32,18.21544662]
[1734374197626,2.289,218.39,218.32,18.21544662]
[1734374197822,2.289,218.39,218.33,2.2895]
[1734374198032,2.64,218.42,218.35,5.37691957]
[1734374198223,2.64,218.42,218.3,4.1465]
[1734374198427,2.64,218.42,218.31,4.91807304]
[1734374198428,14.76374662,218.41,218.31,4.91807304]
[1734374198624,14.76374662,218.41,218.3,2.64]
[1734374198929,14.76374662,218.41,218.29,13.28584662]
[1734374198930,1.4779,218.41,218.29,13.28584662]
[1734374199329,1.4779,218.41,218.31,5.52365276]
[1734374199634,1.4779,218.41,218.34,2.2894]
[1734374199833,1.4779,218.41,218.32,13.28584662]
[1734374200134,1.4779,218.41,218.36,2.2892]
[1734374202132,1.4779,218.41,218.34,2.2893]
[1734374202133,3.7666,218.41,218.34,2.2893]
[1734374202437,3.7666,218.41,218.32,13.28584662]
[1734374202735,2.2889,218.4,218.33,4.91555988]
[1734374202929,2.2889,218.4,218.32,13.28584662]
[1734374203233,2.2889,218.4,218.34,2.2894]
[1734374204435,1.4779,218.41,218.31,5.52365276]
[1734374204829,1.4779,218.41,218.32,4.91605168]
[1734374205031,2.289,218.38,218.32,2.2896]
[1734374205529,2.289,218.38,218.33,2.2895]
[1734374206732,2.2889,218.4,218.34,2.2894]
[1734374206928,1.4779,218.41,218.32,13.28584662]
[1734374207132,1.4779,218.41,218.33,4.91500193]
[1734374207330,3.7666,218.41,218.35,2.2892]
[1734374207838,1.5738,218.43,218.32,13.28584662]
[1734374208134,254.99297313,218.46,218.35,13.28584662]
[1734374208534,1.5086,218.46,218.35,13.28584662]
[1734374208937,1.5086,218.46,218.39,2.2889]
[1734374210146,13.28584662,218.43,218.31,5.52365276]
[1734374210338,2.64,218.42,218.31,5.52365276]
[1734374210742,2.64,218.42,218.32,4.91416395]
[1734374210944,15.92584662,218.43,218.31,5.52365276]
[1734374211144,2.2888,218.4,218.35,2.2893]
[1734374211343,2.2888,218.4,218.31,5.52365276]
[1734374211344,2.64,218.44,218.32,15.92584662]
[1734374211640,155.9894917,218.52,218.5,2.2878]
[1734374212139,155.9894917,218.52,218.47,2.64]
[1734374212445,2.2878,218.5,218.47,2.64]
[1734374212739,155.9894917,218.52,218.4,13.28584662]
[1734374212943,155.9894917,218.52,218.41,2.64]
[1734374213334,1.31887,218.52,218.41,4.9286]
[1734374213944,1.31887,218.52,218.42,5.58670963]
[1734374214338,2.2881,218.48,218.42,5.58670963]
[1734374215044,1.31887,218.52,218.43,13.28584662]
[1734374215340,1.31887,218.52,218.46,13.28584662]
[1734374215644,1.31887,218.52,218.46,15.92584662]
[1734374216537,1.31887,218.52,218.47,2.288]
[1734374217044,1.31887,218.52,218.49,13.28584662]
[1734374217441,1.31887,218.52,218.5,2.2877]
[1734374217639,1.31887,218.52,218.49,13.28584662]
[1734374217844,1.31887,218.52,218.42,5.58670963]
[1734374218038,2.2878,218.51,218.44,13.28584662]
[1734374218243,1.31887,218.52,218.44,13.28584662]
[1734374219050,1.31887,218.52,218.45,2.64]
[1734374219447,1.31887,218.52,218.47,2.2881]
[1734374220042,1.31887,218.52,218.45,4.9282]
[1734374220848,1.31887,218.52,218.45,2.2882]
[1734374221047,2.2879,218.49,218.43,4.9284]
[1734374221247,14.60471662,218.52,218.43,2.64]
[1734374221645,1.31887,218.52,218.43,2.64]
[1734374221842,1.31887,218.52,218.44,13.28584662]
[1734374223349,1.31887,218.52,218.48,2.288]
[1734374223850,1.31887,218.52,218.48,2.64]
[1734374224049,1.31887,218.52,218.51,2.2877]
[1734374224256,1.31887,218.52,218.48,2.64]
[1734374225347,1.31887,218.52,218.49,2.2879]
[1734374225551,1.31887,218.52,218.48,2.64]
[1734374225950,1.31887,218.52,218.44,2.64]
[1734374226158,1.31887,218.52,218.42,5.58670963]
[1734374226353,15.92584662,218.55,218.42,8.22670963]
[1734374227051,2.2879,218.5,218.44,2.2883]
[1734374227453,15.92584662,218.55,218.42,5.58670963]
[1734374227454,13.28584662,218.49,218.42,5.58670963]
[1734374227855,13.28584662,218.49,218.37,1.5982]
[1734374228054,13.28584662,218.49,218.37,4.2382]
[1734374228760,2.2883,218.45,218.39,2.2888]
[1734374228961,2.2883,218.45,218.37,4.2382]
[1734374229661,13.28584662,218.49,218.37,4.2382]
[1734374229662,2.2882,218.46,218.4,2.2888]
[1734374232163,2.2884,218.45,218.4,2.2888]
[1734374232463,14.90724662,218.49,218.39,2.289]
[1734374232686,2.2887,218.42,218.34,2.64]
[1734374232961,13.28584662,218.46,218.37,2.2891]
[1734374233259,13.28584662,218.46,218.34,2.64]
[1734374233456,13.28584662,218.46,218.36,2.2892]
[1734374233661,2.64,218.45,218.36,2.2892]
[1734374233857,2.64,218.45,218.33,2.64]
[1734374234057,2.64,218.45,218.34,4.91941458]
[1734374234258,2.64,218.45,218.33,2.64]
[1734374234462,1.5485,218.48,218.35,13.28584662]
[1734374234760,1.5485,218.48,218.38,13.28584662]
[1734374234964,3.8366,218.48,218.39,2.64]
[1734374235155,2.2881,218.48,218.39,2.64]
[1734374236358,2.2881,218.48,218.43,2.2885]
[1734374236758,3.9093,218.49,218.39,2.64]
[1734374236956,1.6214,218.49,218.39,2.64]
[1734374237158,2.2882,218.47,218.39,2.64]
[1734374238058,2.2882,218.47,218.43,2.2885]
[1734374238262,1.6214,218.49,218.43,2.2885]
[1734374238263,2.288,218.48,218.43,2.2885]
[1734374238565,3.1502,218.54,218.39,2.64]
[1734374238862,2.7,218.53,218.41,13.28584662]
[1734374239060,2.2876,218.52,218.42,4.91841588]
[1734374239358,3.1502,218.54,218.41,13.28584662]
[1734374239564,2.2875,218.53,218.41,13.28584662]
[1734374239756,2.2875,218.53,218.42,4.91819767]
[1734374239959,2.2875,218.53,218.47,2.288]
[1734374241463,2.2875,218.53,218.45,2.7]
[1734374241464,2.2873,218.55,218.5,2.2878]
[1734374241663,1.585,218.56,218.45,2.7]
[1734374241869,15.98584662,218.6,218.46,8.31191803]
[1734374242061,15.98584662,218.6,218.45,2.7]
[1734374242062,15.98584662,218.6,218.47,8.31191803]
[1734374242258,15.98584662,218.6,218.48,4.91611674]
[1734374242477,15.98584662,218.6,218.45,4.2058]
[1734374242658,13.28584662,218.54,218.46,3.39491994]
[1734374242868,13.28584662,218.54,218.45,2.7]
[1734374243163,13.28584662,218.54,218.44,1.4897]
[1734374243164,13.28584662,218.51,218.43,5.54821137]
[1734374244565,2.2879,218.5,218.43,5.54821137]
[1734374245461,2.2877,218.51,218.43,5.54821137]
[1734374245967,4.3154,218.53,218.47,2.288]
[1734374246566,4.3154,218.53,218.46,2.2882]
[1734374247066,2.2877,218.51,218.43,5.54821137]
[1734374248363,2.2877,218.51,218.4,4.3204]
[1734374248364,13.28584662,218.48,218.4,2.7]
[1734374248562,13.28584662,218.48,218.35,13.28584662]
[1734374248759,13.28584662,218.48,218.39,2.2889]
[1734374248760,2.2884,218.45,218.39,2.2889]
[1734374248958,2.2884,218.45,218.37,2.7]
[1734374249171,2.2884,218.45,218.41,5.52733618]
[1734374249360,2.2884,218.44,218.41,5.52733618]
[1734374250367,13.28584662,218.48,218.37,2.7]
[1734374250368,2.2887,218.42,218.37,2.7]
[1734374251166,2.2887,218.42,218.37,4.9891]
[1734374251371,2.2887,218.42,218.37,2.7]
[1734374251672,2.2887,218.42,218.34,2.7]
[1734374251872,2.2887,218.42,218.35,4.92340493]
[1734374252072,2.2885,218.44,218.38,2.2891]
[1734374252269,2.7,218.48,218.35,2.7]
[1734374252471,2.2881,218.47,218.41,2.2888]
[1734374252869,2.2881,218.47,218.38,5.41428982]
[1734374253168,2.2881,218.47,218.39,4.92354513]
[1734374253368,2.2881,218.47,218.4,4.92363173]
[1734374253573,2.2881,218.47,218.38,5.41428982]
[1734374253574,2.2881,218.47,218.43,2.2885]
[1734374253768,2.288,218.49,218.4,2.7]
[1734374253971,1.5049,218.52,218.41,21.61011944]
[1734374254171,1.5049,218.52,218.42,4.92337663]
[1734374254363,3.7925,218.52,218.43,8.32441887]
[1734374254563,2.2876,218.52,218.44,4.92337663]
[1734374254773,2.2876,218.52,218.45,4.92337663]
[1734374255072,2.2876,218.52,218.41,13.28584662]
[1734374255263,3.9029,218.53,218.42,8.32557379]
[1734374255466,3.9029,218.53,218.43,8.32557379]
[1734374255667,3.9029,218.53,218.44,4.9241214]
[1734374255867,3.9029,218.53,218.45,4.9241214]
[1734374256064,3.9029,218.53,218.41,13.28584662]
[1734374256269,3.9029,218.53,218.42,3.40234165]
[1734374256464,3.9029,218.53,218.43,8.32775835]
[1734374256667,2.2874,218.55,218.48,2.288]
[1734374256869,3.51577,218.55,218.48,2.288]
[1734374257069,1.22837,218.55,218.48,2.288]
[1734374257370,1.22837,218.55,218.45,2.7]
[1734374257573,1.22837,218.55,218.46,4.92507728]
[1734374257869,2.2876,218.52,218.47,2.2881]
[1734374258270,2.2875,218.54,218.45,2.7]
[1734374258471,2.2875,218.54,218.48,2.288]
[1734374259169,1.22837,218.55,218.45,2.7]
[1734374259374,1.22837,218.55,218.46,8.32677566]
[1734374259574,1.22837,218.55,218.47,4.92460754]
[1734374259873,1.22837,218.55,218.45,2.7]
[1734374259874,1.22837,218.55,218.48,4.92460754]
[1734374260169,1.22837,218.55,218.47,13.28584662]
[1734374260373,1.22837,218.55,218.48,8.32533983]
[1734374260569,1.22837,218.55,218.49,4.9240356]
[1734374260766,1.22837,218.55,218.52,2.2875]
[1734374262067,1.22837,218.55,218.5,2.7]
[1734374262068,1.22837,218.55,218.5,4.9877]
[1734374262370,1.22837,218.55,218.41,3.167]
[1734374262371,14.51421662,218.55,218.45,2.7]
[1734374262570,14.51421662,218.55,218.46,4.92259406]
[1734374262766,14.51421662,218.55,218.45,2.7]
[1734374262974,14.51421662,218.55,218.46,4.9225982]
[1734374263178,1.22837,218.55,218.45,2.7]
[1734374263371,1.22837,218.55,218.49,5.54837619]
[1734374264680,1.22837,218.55,218.52,2.2875]
[1734374265975,1.22837,218.55,218.5,2.7]
[1734374266175,1.22837,218.55,218.51,2.2877]
[1734374266370,1.22837,218.55,218.5,2.7]
[1734374266776,3.51567,218.55,218.5,4.9878]
[1734374267876,1.22837,218.55,218.5,2.7]
[1734374269086,1.22837,218.55,218.51,2.2877]
[1734374269286,1.22837,218.55,218.49,5.54837619]
[1734374269483,13.28584662,218.53,218.41,1.5443]
[1734374269784,13.28584662,218.53,218.42,2.2885]
[1734374269785,13.28584662,218.5,218.42,2.2885]
[1734374270687,2.288,218.48,218.42,2.2885]
[1734374271690,2.288,218.48,218.43,2.2885]
[1734374272583,2.2881,218.49,218.44,2.2885]
[1734374272780,1.6034,218.52,218.41,1.5443]
[1734374272985,1.6034,218.52,218.41,4.2243]
[1734374273779,2.2879,218.5,218.45,2.2884]
[1734374273981,23.92532688,218.53,218.41,4.2243]
[1734374274185,255.52476721,218.55,218.41,4.2243]
[1734374274491,1.22837,218.55,218.42,8.32067561]
[1734374274690,1.22837,218.55,218.43,4.92138158]
[1734374274890,1.22837,218.55,218.44,4.92138158]
[1734374275188,1.22837,218.55,218.45,8.31996638]
[1734374275382,1.22837,218.55,218.48,2.2879]